bitfinex/quotes_SOLUSD_20250414
["timestamp","ask_amount","ask_price","bid_price","bid_amount"]
[1744605766432,24.3345931,133.56,133.5,30.5457931]
[1744605767020,25.3246931,133.58,133.53,18.3446931]
[1744605767421,25.3246931,133.58,133.52,18.3446931]
[1744605768026,18.3446931,133.57,133.51,18.3446931]
[1744605769012,24.3340931,133.57,133.52,5.9916]
[1744605769213,18.49096657,133.58,133.52,17.50256657]
[1744605769526,11.51096657,133.57,133.52,17.50256657]
[1744605770028,11.51096657,133.56,133.51,17.50286657]
[1744605770734,11.51096657,133.56,133.51,100.07286657]
[1744605770935,17.50106657,133.56,133.51,88.5619]
[1744605771434,17.50106657,133.56,133.5,17.71956657]
[1744605771435,11.51096657,133.54,133.5,6.2086]
[1744605772429,11.79528971,133.55,133.5,12.201]
[1744605772730,11.51096657,133.56,133.5,23.71196657]
[1744605772936,17.50086657,133.56,133.51,11.51096657]
[1744605773840,17.50086657,133.56,133.5,23.71196657]
[1744605774335,11.51096657,133.54,133.5,6.2086]
[1744605774717,11.79528971,133.55,133.5,6.2086]
[1744605775031,11.51096657,133.55,133.5,23.71186657]
[1744605775236,17.78478971,133.57,133.51,11.51096657]
[1744605775531,11.51096657,133.57,133.51,11.51096657]
[1744605776034,11.51096657,133.57,133.52,5.9916]
[1744605776222,17.50036657,133.57,133.52,5.9916]
[1744605778730,17.50036657,133.57,133.51,5.992]
[1744605778937,17.50036657,133.57,133.51,17.50296657]
[1744605779134,17.50036657,133.57,133.51,5.992]
[1744605779339,7.6776,133.67,133.56,17.53326657]
[1744605779536,11.51096657,133.66,133.6,11.51096657]
[1744605779722,11.51096657,133.65,133.56,88.5923]
[1744605779917,11.51096657,133.65,133.56,100.10326657]
[1744605779918,11.51096657,133.62,133.56,100.10326657]
[1744605780632,11.51096657,133.6,133.56,88.5923]
[1744605780843,6.12916157,133.63,133.56,106.09296657]
[1744605781139,11.51096657,133.61,133.56,106.09296657]
[1744605781634,0.28432314,133.63,133.56,106.09296657]
[1744605781834,26.0,133.62,133.57,11.51096657]
[1744605782140,26.0,133.62,133.58,11.51096657]
[1744605782834,26.0,133.62,133.59,5.9884]
[1744605783137,26.0,133.62,133.59,88.5584]
[1744605783319,25.77181043,133.66,133.6,11.51096657]
[1744605783521,11.51096657,133.65,133.6,94.11096657]
[1744605784235,11.51096657,133.63,133.6,82.6]
[1744605784437,11.51096657,133.63,133.59,1.5769]
[1744605784637,11.51096657,133.65,133.59,1.5769]
[1744605784819,0.28432314,133.65,133.61,5.9875]
[1744605785021,11.65312814,133.65,133.61,5.9875]
[1744605786442,11.51096657,133.66,133.61,5.9875]
[1744605786639,11.51096657,133.65,133.61,82.6]
[1744605787021,11.51096657,133.64,133.61,82.6]
[1744605787226,11.51096657,133.64,133.56,20.9967]
[1744605787227,11.51096657,133.62,133.57,11.51096657]
[1744605787523,11.51096657,133.62,133.57,82.6]
[1744605787827,11.51096657,133.62,133.57,88.5892]
[1744605789023,17.49816657,133.62,133.57,88.5892]
[1744605790444,6.27202314,133.61,133.57,82.6]
[1744605790651,17.78298971,133.61,133.57,82.6]
[1744605791452,6.27202314,133.61,133.57,82.6]
[1744605791926,11.51096657,133.6,133.57,82.6]
[1744605792126,0.28432314,133.59,133.55,1.6624]
[1744605792337,17.78368971,133.59,133.54,100.10146657]
[1744605792660,17.78368971,133.59,133.54,88.5906]
[1744605793152,11.51096657,133.57,133.54,82.6]
[1744605793357,11.51096657,133.57,133.52,90.2538]
[1744605794357,11.51096657,133.57,133.52,101.76476657]
[1744605794570,11.51096657,133.56,133.52,82.6]
[1744605794854,11.51096657,133.58,133.53,11.51096657]
[1744605795046,13.39528471,133.59,133.52,88.5915]
[1744605795047,0.28432314,133.59,133.54,11.51096657]
[1744605795247,11.79528971,133.59,133.54,11.51096657]
[1744605795453,11.79528971,133.59,133.53,11.51096657]
[1744605795648,17.78368971,133.59,133.53,11.51096657]
[1744605796557,11.51096657,133.58,133.53,11.51096657]
[1744605796737,11.51096657,133.58,133.53,17.50176657]
[1744605797853,0.28432314,133.57,133.52,88.5916]
[1744605798150,11.51096657,133.56,133.52,82.6]
[1744605799352,17.50086657,133.56,133.52,82.6]
[1744605799947,0.28432314,133.55,133.52,82.6]
[1744605800383,45.07613357,133.51,133.5,0.063]
[1744605800657,56.58710014,133.51,133.5,0.063]
[1744605800954,26.0,133.51,133.5,0.063]
[1744605801251,18.49096657,133.52,133.5,0.063]
[1744605802950,11.51096657,133.52,133.5,0.063]
[1744605804056,17.50256657,133.52,133.5,0.063]
[1744605804358,30.58710014,133.51,133.5,0.063]
[1744605804933,36.57910014,133.51,133.5,0.063]
[1744605807064,11.51096657,133.51,133.5,0.063]
[1744605807957,17.50296657,133.51,133.5,0.063]
[1744605808457,43.50296657,133.51,133.5,0.063]
[1744605808631,20.28456358,133.58,133.5,11.57396657]
[1744605808836,17.50026657,133.57,133.52,11.51096657]
[1744605809157,1.521,133.58,133.52,11.51096657]
[1744605809158,17.50006657,133.58,133.53,11.51096657]
[1744605809456,18.63312814,133.59,133.53,11.51096657]
[1744605809757,26.0,133.56,133.53,11.51096657]
[1744605810347,11.51096657,133.61,133.55,11.51096657]
[1744605810546,11.51096657,133.61,133.56,11.51096657]
[1744605810946,11.51096657,133.61,133.55,11.51096657]
[1744605811141,24.39632644,133.61,133.55,18.40872644]
[1744605812254,24.39632644,133.61,133.56,5.9898]
[1744605812772,37.48486001,133.6,133.54,18.40872644]
[1744605813863,43.47286001,133.6,133.55,5.9902]
[1744605814157,18.40872644,133.61,133.56,18.40872644]
[1744605814340,44.40872644,133.59,133.53,5.9908]
[1744605814545,40.03113357,133.62,133.53,5.9908]
[1744605814546,18.40872644,133.57,133.53,5.9908]
[1744605814755,18.40872644,133.58,133.53,5.9908]
[1744605814948,18.40872644,133.58,133.53,24.39952644]
[1744605815262,18.40872644,133.6,133.55,18.40872644]
[1744605815952,24.39672644,133.6,133.55,24.39882644]
[1744605816350,24.39672644,133.6,133.55,18.40872644]
[1744605816555,24.39672644,133.6,133.54,24.39922644]
[1744605816744,18.40872644,133.59,133.54,24.39922644]
[1744605816944,18.40872644,133.6,133.55,18.40872644]
[1744605817147,24.53858801,133.61,133.55,18.40872644]
[1744605817662,24.39602644,133.62,133.57,18.40872644]
[1744605817959,24.39602644,133.62,133.57,106.99782644]
[1744605818893,18.40872644,133.62,133.57,106.99782644]
[1744605819846,24.39592644,133.62,133.57,106.99782644]
[1744605820043,24.39592644,133.62,133.57,82.6]
[1744605820649,18.40872644,133.61,133.57,82.6]
[1744605820856,18.40872644,133.6,133.57,82.6]
[1744605821473,37.48486001,133.61,133.57,82.6]
[1744605821845,18.40872644,133.6,133.57,82.6]
[1744605822047,24.39692644,133.6,133.55,88.59]
[1744605822662,43.47256001,133.61,133.55,106.99872644]
[1744605823765,24.39602644,133.62,133.56,18.40872644]
[1744605824348,31.65984958,133.63,133.57,18.40872644]
[1744605824545,24.53768801,133.63,133.57,18.40872644]
[1744605824748,18.40872644,133.62,133.57,18.40872644]
[1744605825473,24.39592644,133.62,133.56,18.40872644]
[1744605825982,18.40872644,133.6,133.55,88.59]
[1744605826153,18.40872644,133.58,133.55,82.6]
[1744605826349,18.40872644,133.58,133.53,88.5908]
[1744605826556,18.40872644,133.58,133.53,106.99952644]
[1744605827047,18.40872644,133.59,133.53,106.99952644]
[1744605827246,18.40872644,133.59,133.54,18.40872644]
[1744605827451,24.39722644,133.59,133.53,106.99972644]
[1744605827659,18.40872644,133.58,133.53,82.6]
[1744605828378,18.40872644,133.58,133.53,88.591]
[1744605828579,18.40872644,133.58,133.53,82.6]
[1744605829175,18.40872644,133.57,133.53,82.6]
[1744605830074,5.9893,133.57,133.53,82.6]
[1744605830371,6.98,133.59,133.53,106.99982644]
[1744605830557,6.98,133.59,133.55,18.40872644]
[1744605831267,5.9863,133.64,133.58,11.50345863]
[1744605831468,5.9863,133.64,133.59,11.50345863]
[1744605831677,17.48975863,133.64,133.59,11.50345863]
[1744605831870,17.48975863,133.64,133.58,102.08745863]
[1744605832071,17.48975863,133.64,133.58,108.07605863]
[1744605832264,11.50345863,133.63,133.58,96.5726]
[1744605832771,11.50345863,133.62,133.58,82.6]
[1744605833887,19.07613357,133.63,133.58,82.6]
[1744605834080,17.49055863,133.62,133.58,82.6]
[1744605834377,17.48995863,133.64,133.58,100.09225863]
[1744605834562,11.50345863,133.63,133.58,88.5888]
[1744605834880,11.50345863,133.61,133.58,82.6]
[1744605835056,11.50345863,133.61,133.56,11.50345863]
[1744605835256,30.5795922,133.62,133.56,11.50345863]
[1744605836387,17.49125863,133.61,133.56,11.50345863]
[1744605836681,17.49125863,133.61,133.55,108.07735863]
[1744605837674,17.49125863,133.61,133.56,17.49305863]
[1744605838179,17.49025863,133.63,133.58,11.50345863]
[1744605838477,17.49025863,133.63,133.58,82.6]
[1744605841768,17.49065863,133.62,133.58,82.6]
[1744605842279,11.50345863,133.63,133.58,100.09235863]
[1744605842663,17.49015863,133.63,133.58,100.09235863]
[1744605842860,11.50345863,133.63,133.58,100.09235863]
[1744605843069,24.46935863,133.65,133.59,11.50345863]
[1744605843362,24.46935863,133.65,133.6,11.50345863]
[1744605843684,24.46935863,133.65,133.59,11.50345863]
[1744605843977,11.50345863,133.64,133.59,17.49185863]
[1744605844160,11.50345863,133.63,133.58,82.6]
[1744605844356,11.50345863,133.62,133.58,82.6]
[1744605844761,37.50345863,133.61,133.58,82.6]
[1744605845579,11.50345863,133.64,133.58,100.09225863]
[1744605845979,11.50345863,133.64,133.59,11.50345863]
[1744605846180,17.48935863,133.65,133.6,11.50345863]
[1744605846881,0.03,133.67,133.63,11.50345863]
[1744605847080,0.03,133.67,133.66,11.50345863]
[1744605847282,0.03,133.67,133.66,94.10345863]
[1744605847489,0.03,133.67,133.66,82.6]
[1744605849388,0.03,133.67,133.63,17.48995863]
[1744605854175,0.03,133.67,133.63,100.08995863]
[1744605854371,10.56345863,133.68,133.63,100.08995863]
[1744605855297,16.54795863,133.68,133.63,94.10345863]
[1744605855512,11.50345863,133.66,133.63,82.6]
[1744605856004,11.50345863,133.65,133.63,82.6]
[1744605858076,0.03,133.69,133.61,25.20285863]
[1744605858277,0.03,133.69,133.64,11.50345863]
[1744605858499,11.53345863,133.69,133.64,11.50345863]
[1744605858800,17.51745863,133.69,133.64,11.50345863]
[1744605859210,17.51745863,133.69,133.63,11.50345863]
[1744605859998,11.50345863,133.68,133.63,17.48975863]
[1744605860799,11.50345863,133.68,133.63,5.9863]
[1744605861098,0.03,133.69,133.66,11.50345863]
[1744605861283,0.03,133.69,133.66,94.10345863]
[1744605861488,11.50345863,133.68,133.66,82.6]
[1744605861701,11.50345863,133.68,133.63,11.50345863]
[1744605861997,11.50345863,133.68,133.63,94.10345863]
[1744605863613,11.50345863,133.68,133.64,5.9862]
[1744605864108,11.53345863,133.69,133.64,5.9862]
[1744605864276,0.03,133.69,133.64,17.48965863]
[1744605864481,0.03,133.69,133.65,11.50345863]
[1744605865195,26.03,133.69,133.65,82.6]
[1744605865392,26.03,133.69,133.65,94.10345863]
[1744605865708,26.03,133.69,133.66,5.9853]
[1744605865883,26.03,133.69,133.66,88.5853]
[1744605866213,0.03,133.69,133.66,82.6]
[1744605866509,6.014,133.69,133.66,82.6]
[1744605866681,0.03,133.69,133.66,94.10345863]
[1744605867189,0.03,133.69,133.66,82.6]
[1744605867385,0.03,133.69,133.66,94.10345863]
[1744605867694,0.03,133.69,133.67,11.50345863]
[1744605868084,0.03,133.69,133.68,5.9844]
[1744605869592,0.03,133.69,133.68,17.48785863]
[1744605870587,0.03,133.69,133.68,5.9844]
[1744605871606,0.03,133.69,133.67,90.085]
[1744605872780,0.03,133.69,133.67,84.1003]
[1744605873988,0.03,133.69,133.67,90.0851]
[1744605874805,0.03,133.69,133.67,101.58855863]
[1744605878104,0.03,133.69,133.68,11.50345863]
[1744605878787,0.03,133.69,133.68,94.10345863]
[1744605878988,0.03,133.69,133.68,82.6]
[1744605879303,0.03,133.69,133.68,94.10345863]
[1744605880010,0.03,133.69,133.68,100.51434334]
[1744605881499,0.03,133.71,133.69,82.57]
[1744605881697,0.03,133.71,133.7,11.50345863]
[1744605882006,0.03,133.71,133.69,82.57]
[1744605882303,0.03,133.71,133.7,17.48695863]
[1744605886431,0.03,133.71,133.7,100.05695863]
[1744605887091,0.03,133.71,133.7,95.89911384]
[1744605892706,0.03,133.71,133.7,82.57]
[1744605893208,0.03,133.71,133.67,98.37591384]
[1744605893517,0.03,133.71,133.69,7.34561384]
[1744605895619,0.03,133.71,133.7,13.32911384]
[1744605896221,0.03,133.71,133.69,13.32941384]
[1744605896522,0.03,133.71,133.69,5.9838]
[1744605896907,0.03,133.71,133.69,13.32941384]
[1744605898228,0.03,133.71,133.69,95.89941384]
[1744605900313,0.03,133.71,133.69,88.5538]
[1744605901332,7.34561384,133.7,133.66,82.57]
[1744605901532,7.34561384,133.67,133.63,82.633]
[1744605901834,7.34561384,133.64,133.63,0.063]
[1744605902611,13.33161384,133.65,133.63,0.063]
[1744605902816,7.34561384,133.65,133.63,0.063]
[1744605903009,7.34561384,133.66,133.63,0.063]
[1744605903209,7.34561384,133.67,133.63,0.063]
[1744605903436,7.34561384,133.67,133.63,82.633]
[1744605903822,7.34561384,133.68,133.63,82.633]
[1744605904331,7.34561384,133.68,133.64,5.9862]
[1744605904530,0.03,133.71,133.65,7.34561384]
[1744605904833,7.37561384,133.71,133.65,89.91561384]
[1744605905024,7.37561384,133.71,133.66,7.34561384]
[1744605905223,11.51628366,133.71,133.65,94.05628366]
[1744605905933,0.03,133.71,133.67,11.48628366]
[1744605906231,0.03,133.71,133.68,11.48628366]
[1744605906442,0.03,133.71,133.69,5.9839]
[1744605907536,0.03,133.71,133.7,11.48628366]
[1744605907711,0.03,133.71,133.69,88.5539]
[1744605908440,0.03,133.71,133.69,82.57]
[1744605909130,11.51628366,133.71,133.69,82.57]
[1744605909739,11.51628366,133.71,133.67,82.57]
[1744605910243,11.51628366,133.71,133.67,88.5547]
[1744605910537,0.03,133.71,133.68,11.48628366]
[1744605912445,0.03,133.71,133.69,5.9839]
[1744605912642,0.03,133.71,133.7,11.48628366]
[1744605912847,0.03,133.71,133.7,94.05628366]
[1744605914044,0.03,133.71,133.7,82.57]
[1744605914546,0.03,133.71,133.7,100.03978366]
[1744605916262,0.03,133.72,133.71,0.14216157]
[1744605916426,0.03,133.72,133.71,94.48276837]
[1744605916734,0.0001,133.72,133.71,125.68821723]
[1744605917727,0.0001,133.72,133.71,106.61208366]
[1744605921255,0.0001,133.72,133.71,88.553]
[1744605921933,0.0001,133.72,133.71,82.57]
[1744605922327,0.0001,133.72,133.69,89.53]
[1744605922548,0.0001,133.72,133.69,82.57]
[1744605923251,0.0001,133.72,133.67,17.47088366]
[1744605923548,11.48638366,133.72,133.67,88.5546]
[1744605923749,11.48638366,133.72,133.63,94.11928366]
[1744605923750,11.48628366,133.68,133.63,94.11928366]
[1744605924052,11.48628366,133.69,133.63,94.11928366]
[1744605924550,11.48628366,133.69,133.65,0.063]
[1744605925951,5.9828,133.72,133.65,11.54928366]
[1744605926159,11.48638366,133.72,133.67,11.48628366]
[1744605926463,0.0001,133.72,133.68,11.48628366]
[1744605926631,0.0001,133.72,133.69,5.9839]
[1744605927935,0.0001,133.72,133.69,17.47018366]
[1744605928130,0.0001,133.72,133.71,11.48628366]
[1744605928748,0.0001,133.72,133.71,94.05628366]
[1744605929252,0.0001,133.72,133.71,100.03928366]
[1744605930530,0.0001,133.72,133.71,100.3236068]
[1744605930755,0.0001,133.72,133.71,119.11541723]
[1744605931057,0.0001,133.72,133.71,127.07541723]
[1744605931352,0.0001,133.72,133.71,126.07541723]
[1744605931545,0.0001,133.72,133.71,107.42576837]
[1744605931750,0.0001,133.72,133.71,126.07541723]
[1744605931950,0.0001,133.72,133.71,127.07541723]
[1744605932334,0.0001,133.72,133.71,126.07541723]
[1744605932547,0.0001,133.72,133.71,127.07541723]
[1744605933140,0.0001,133.74,133.73,26.42648471]
[1744605933331,0.0001,133.74,133.73,120.48276837]
[1744605933745,7.5129,133.86,133.76,0.42648471]
[1744605933931,13.02268366,133.86,133.77,18.87276837]
[1744605935736,13.02268366,133.9,133.82,0.14216157]
[1744605935942,1.5364,133.9,133.85,11.48628366]
[1744605936141,13.02268366,133.9,133.85,94.05628366]
[1744605936953,1.5364,133.9,133.85,94.05628366]
[1744605937160,1.5364,133.9,133.86,11.48628366]
[1744605937855,0.03,133.92,133.89,11.48628366]
[1744605938041,0.03,133.92,133.88,11.48628366]
[1744605938242,0.03,133.92,133.9,11.48628366]
[1744605938541,0.03,133.92,133.89,11.48628366]
[1744605939955,0.03,133.92,133.89,17.46098366]
[1744605940340,0.03,133.92,133.9,11.48628366]
[1744605941853,0.03,133.92,133.9,17.46068366]
[1744605942545,0.03,133.92,133.89,94.05628366]
[1744605942866,0.03,133.92,133.89,82.57]
[1744605943237,11.48628366,133.91,133.86,82.57]
[1744605943449,11.48628366,133.9,133.86,82.57]
[1744605943664,11.48628366,133.91,133.86,94.05628366]
[1744605944046,11.48628366,133.91,133.86,100.03258366]
[1744605944645,11.51628366,133.92,133.87,11.48628366]
[1744605945251,0.03,133.92,133.87,11.48628366]
[1744605945666,0.03,133.92,133.89,11.48628366]
[1744605945857,0.03,133.92,133.89,94.05628366]
[1744605946958,0.03,133.92,133.89,82.57]
[1744605947547,0.03,133.92,133.89,88.5449]
[1744605947948,0.03,133.92,133.89,100.03118366]
[1744605948354,0.03,133.92,133.91,11.48628366]
[1744605948667,0.03,133.92,133.91,82.57]
[1744605949249,11.51628366,133.92,133.89,6.94]
[1744605949482,11.48628366,133.91,133.88,82.57]
[1744605950773,11.48628366,133.9,133.88,82.57]
[1744605951149,17.46088366,133.9,133.88,82.57]
[1744605951772,11.48628366,133.9,133.88,82.57]
[1744605952767,17.46098366,133.9,133.88,82.57]
[1744605953577,11.48628366,133.9,133.88,82.57]
[1744605953871,17.46098366,133.9,133.85,89.51]
[1744605954078,17.46098366,133.9,133.85,106.97298366]
[1744605955973,5.9741,133.91,133.85,106.97298366]
[1744605956363,11.48628366,133.9,133.85,106.97298366]
[1744605957075,17.46038366,133.91,133.86,11.48628366]
[1744605957375,11.48628366,133.91,133.86,11.48628366]
[1744605958078,1.6955,133.92,133.87,17.46198366]
[1744605958079,19.15548366,133.92,133.87,17.46198366]
[1744605959576,19.15548366,133.92,133.86,11.48628366]
[1744605959764,19.15548366,133.92,133.85,6.94]
[1744605959765,11.48628366,133.9,133.85,18.42628366]
[1744605960159,11.48628366,133.89,133.85,12.9167]
[1744605960363,11.48628366,133.9,133.85,12.9167]
[1744605960981,11.48628366,133.91,133.86,11.48628366]
[1744605961880,11.48628366,133.91,133.86,17.46238366]
[1744605962277,17.46058366,133.91,133.86,17.46238366]
[1744605963184,11.48628366,133.91,133.86,17.46238366]
[1744605963777,17.46058366,133.91,133.86,17.46238366]
[1744605965581,19.15568366,133.92,133.86,17.46238366]
[1744605967573,7.6694,133.92,133.86,17.46238366]
[1744605967778,19.15568366,133.92,133.86,17.46238366]
[1744605967966,19.15568366,133.92,133.87,11.48628366]
[1744605968166,19.15568366,133.92,133.86,17.46238366]
[1744605968586,6.0039,133.92,133.86,17.46238366]
[1744605968782,17.49018366,133.92,133.86,17.46238366]
[1744605970784,11.48628366,133.89,133.82,5.9781]
[1744605970991,11.48628366,133.88,133.83,11.48628366]
[1744605971177,11.48628366,133.91,133.85,11.48628366]
[1744605971378,17.49018366,133.92,133.86,11.48628366]
[1744605971567,0.03,133.92,133.89,11.48628366]
[1744605972581,11.48628366,133.91,133.86,6.94]
[1744605972885,17.46128366,133.89,133.83,25.12438366]
[1744605974576,11.48628366,133.87,133.82,12.9181]
[1744605974776,13.15178366,133.88,133.82,24.40438366]
[1744605974976,17.46128366,133.89,133.83,11.48628366]
[1744605975172,17.46128366,133.89,133.84,11.48628366]
[1744605975572,11.48628366,133.88,133.83,11.48628366]
[1744605975775,11.48628366,133.84,133.75,6.0657]
[1744605975978,11.48628366,133.82,133.76,11.48628366]
[1744605976290,11.48628366,133.81,133.76,17.46708366]
[1744605976675,11.48628366,133.83,133.77,11.48628366]
[1744605976882,11.48628366,133.82,133.77,11.48628366]
[1744605977079,11.48628366,133.82,133.76,17.46708366]
[1744605977403,11.48628366,133.82,133.77,11.48628366]
[1744605978107,11.48628366,133.84,133.78,11.48628366]
[1744605978283,11.48628366,133.86,133.81,11.48628366]
[1744605978611,17.46268366,133.86,133.81,11.48628366]
[1744605978795,1.6655,133.87,133.82,11.48628366]
[1744605978999,17.46208366,133.88,133.83,11.48628366]
[1744605979303,11.48628366,133.87,133.82,11.48628366]
[1744605979604,11.48628366,133.84,133.79,6.94]
[1744605979776,11.48628366,133.83,133.79,6.94]
[1744605979975,11.48628366,133.83,133.78,17.46608366]
[1744605980321,11.48628366,133.83,133.77,17.46648366]
[1744605980517,11.48628366,133.82,133.77,17.46648366]
[1744605980688,17.46438366,133.83,133.77,17.46648366]
[1744605980888,17.46438366,133.83,133.78,11.48628366]
[1744605981798,12.05,133.85,133.8,11.48628366]
[1744605982001,23.53628366,133.85,133.8,11.48628366]
[1744605982509,11.48628366,133.84,133.79,11.48628366]
[1744605983217,17.46348366,133.84,133.79,17.46558366]
[1744605983517,17.46348366,133.84,133.79,11.48628366]
[1744605983688,23.53638366,133.85,133.79,11.48628366]
[1744605984046,17.46328366,133.85,133.8,11.48628366]
[1744605984316,17.46268366,133.86,133.8,11.48628366]
[1744605985218,11.48628366,133.85,133.8,11.48628366]
[1744605985409,11.48628366,133.85,133.79,17.46538366]
[1744605986019,11.48628366,133.85,133.8,11.48628366]
[1744605986522,11.48628366,133.85,133.81,5.9786]
[1744605986693,17.46318366,133.85,133.8,17.46518366]
[1744605988222,11.48628366,133.85,133.8,17.46518366]
[1744605988640,5.9759,133.87,133.81,11.48628366]
[1744605988815,11.48628366,133.86,133.81,11.48628366]
[1744605990517,17.46268366,133.86,133.81,17.46468366]
[1744605990717,11.48628366,133.85,133.8,11.48628366]
[1744605990943,11.48628366,133.84,133.79,11.48628366]
[1744605991320,11.48628366,133.85,133.79,11.48628366]
[1744605991938,11.48628366,133.84,133.77,5.9804]
[1744605992153,11.48628366,133.84,133.79,11.48628366]
[1744605992526,17.46358366,133.84,133.79,17.46568366]
[1744605992725,11.48628366,133.84,133.79,17.46568366]
[1744605993034,17.46328366,133.85,133.8,11.48628366]
[1744605993431,5.977,133.85,133.8,11.48628366]
[1744605993745,11.51628366,133.92,133.84,11.48628366]
[1744605993912,0.03,133.92,133.88,11.48628366]
[1744605994313,0.03,133.92,133.89,11.48628366]
[1744605994831,0.03,133.92,133.88,17.46158366]
[1744605995030,11.48628366,133.91,133.86,11.48628366]
[1744605995418,11.51628366,133.91,133.86,11.48628366]
[1744605995818,11.48628366,133.9,133.85,24.40288366]
[1744605996228,11.48628366,133.89,133.84,11.48628366]
[1744605996640,17.46158366,133.89,133.84,11.48628366]
[1744605997134,11.48628366,133.88,133.83,17.46368366]
[1744605997331,17.46158366,133.89,133.83,17.46368366]
[1744605998036,11.48628366,133.89,133.83,17.46368366]
[1744605998335,17.46138366,133.89,133.84,11.48628366]
[1744605998844,17.46138366,133.89,133.83,17.46368366]
[1744605999143,5.9751,133.89,133.84,11.48628366]
[1744605999335,11.48628366,133.9,133.84,17.46308366]
[1744605999538,11.48628366,133.89,133.84,11.48628366]
[1744606000322,11.48628366,133.89,133.83,17.46378366]
[1744606000653,5.9755,133.88,133.83,17.46378366]
[1744606002545,0.03,133.91,133.84,11.48628366]
[1744606002546,11.48628366,133.9,133.84,11.48628366]
[1744606002945,11.48628366,133.89,133.84,11.48628366]
[1744606003646,17.46148366,133.89,133.84,11.48628366]
[1744606004151,11.48628366,133.88,133.83,11.48628366]
[1744606005047,11.48628366,133.88,133.83,17.46398366]
[1744606005543,5.9756,133.88,133.83,17.46398366]
[1744606007634,11.48628366,133.89,133.84,11.48628366]
[1744606007834,37.48628366,133.9,133.85,11.48628366]
[1744606009147,43.46098366,133.9,133.85,11.48628366]
[1744606009652,43.46098366,133.9,133.84,17.46318366]
[1744606009851,11.48628366,133.89,133.84,17.46318366]
[1744606010555,17.46148366,133.89,133.84,17.46318366]
[1744606010759,5.9752,133.89,133.84,17.46318366]
[1744606011254,0.03,133.91,133.86,11.48628366]
[1744606011837,0.03,133.91,133.88,11.48628366]
[1744606012147,0.03,133.91,133.89,11.48628366]
[1744606013036,0.03,133.91,133.87,17.46208366]
[1744606013243,11.51628366,133.91,133.86,17.46248366]
[1744606014336,17.49058366,133.91,133.86,17.46248366]
[1744606014958,0.03,133.91,133.86,17.46248366]
[1744606016161,6.0042,133.91,133.86,17.46248366]
[1744606017664,11.48628366,133.9,133.84,5.9772]
[1744606017834,11.48628366,133.9,133.84,17.46348366]
[1744606018034,11.48628366,133.9,133.85,11.48628366]
[1744606018836,5.9746,133.9,133.85,17.46288366]
[1744606019367,0.03,133.91,133.86,11.48628366]
[1744606019568,0.03,133.91,133.87,11.48628366]
[1744606020255,0.03,133.91,133.88,11.48628366]
[1744606020635,0.03,133.91,133.89,11.48628366]
[1744606020832,0.03,133.91,133.89,5.9749]
[1744606021036,0.03,133.91,133.9,11.48628366]
[1744606021244,0.03,133.91,133.9,94.08628366]
[1744606022050,0.0001,133.91,133.9,113.16241723]
[1744606022245,0.0001,133.91,133.9,94.51276837]
[1744606022453,0.0001,133.91,133.9,94.08628366]
[1744606022838,0.0001,133.91,133.9,119.13701723]
[1744606027347,0.0001,133.91,133.9,100.3452068]
[1744606027554,0.0001,133.91,133.9,100.06088366]
[1744606028962,0.0001,133.91,133.9,11.48628366]
[1744606029144,0.0001,133.91,133.9,17.46088366]
[1744606033381,0.0001,133.91,133.9,100.06088366]
[1744606033572,0.03,133.92,133.91,0.28432314]
[1744606033573,0.0101,133.92,133.91,0.28432314]
[1744606033754,0.0101,133.92,133.91,18.7106068]
[1744606034875,0.0101,133.92,133.91,124.64870089]
[1744606035044,0.03,133.96,133.94,18.79181043]
[1744606035248,0.03,133.96,133.95,11.48628366]
[1744606035475,0.03,133.96,133.94,94.08628366]
[1744606035685,0.03,133.96,133.93,11.48628366]
[1744606036357,0.03,133.96,133.94,5.9726]
[1744606036677,0.03,133.96,133.94,17.45888366]
[1744606037182,0.03,133.96,133.92,5.9737]
[1744606037374,0.03,133.96,133.93,11.48628366]
[1744606038074,0.03,133.96,133.94,11.48628366]
[1744606038372,0.03,133.96,133.95,11.48628366]
[1744606038985,0.03,133.96,133.95,17.45858366]
[1744606039360,0.03,133.96,133.95,17.7429068]
[1744606039772,0.03,133.96,133.95,17.45858366]
[1744606043060,0.03,133.96,133.95,17.7429068]